fUSD/lending_fUSD_20250214
["ID","MTS","AMOUNT","RATE_DAILY","PERIOD"]
[353041295,1739511048609,-500.0,0.00014273,2]
[353041296,1739511048620,-500.0,0.00014273,2]
[353041297,1739511048629,-500.0,0.00014273,2]
[353041298,1739511048640,-495.89,0.00014273,2]
[353041299,1739511048650,-500.0,0.00014273,2]
[353041300,1739511048660,-500.0,0.00014273,2]
[353041301,1739511048670,-500.0,0.00014273,2]
[353041302,1739511048681,-616.51,0.00014273,2]
[353041303,1739511048690,-643.07,0.00014273,2]
[353041304,1739511048700,-500.0,0.00014273,2]
[353041305,1739511048711,-500.0,0.00014273,2]
[353041306,1739511048721,-500.0,0.00014273,2]
[353041307,1739511048731,-500.0,0.00014273,2]
[353041308,1739511048742,-500.0,0.00014273,2]
[353041309,1739511048755,-551.35,0.00014273,2]
[353041310,1739511048766,-641.845334,0.00014273,2]
[353041311,1739511048777,-500.0,0.00014273,2]
[353041312,1739511048787,-806.19,0.00014273,2]
[353041313,1739511048797,-500.0,0.00014273,2]
[353041314,1739511048807,-500.0,0.00014273,2]
[353041315,1739511048817,-500.0,0.00014356,2]
[353041316,1739511048827,-500.0,0.00014356,2]
[353041317,1739511048837,-605.54401562,0.00014356,2]
[353041318,1739511048847,-500.0,0.00014356,2]
[353041319,1739511048858,-500.0,0.00014356,2]
[353041320,1739511048868,-500.0,0.00014356,2]
[353041321,1739511048879,-500.0,0.00014356,2]
[353041322,1739511048889,-247.03,0.00014356,2]
[353041323,1739511048899,-643.07,0.00014356,2]
[353041324,1739511048909,-301.87,0.00014356,2]
[353041325,1739511048920,-500.0,0.00014356,2]
[353041326,1739511048930,-500.0,0.00014356,2]
[353041327,1739511048940,-500.0,0.00014356,2]
[353041328,1739511048950,-500.0,0.00014356,2]
[353041329,1739511048961,-500.0,0.00014356,2]
[353041330,1739511048971,-806.19,0.00014356,2]
[353041331,1739511048981,-375.28,0.00014356,2]
[353041332,1739511048992,-500.0,0.00014356,2]
[353041333,1739511049003,-1000.0,0.00014386,2]
[353041334,1739511049012,-158.8964775,0.00014414,2]
[353041335,1739511049022,-500.0,0.00014438,2]
[353041336,1739511049031,-500.0,0.00014438,2]
[353041337,1739511049041,-500.0,0.00014438,2]
[353041338,1739511049051,-500.0,0.00014438,2]
[353041339,1739511049060,-181.56,0.00014438,2]
[353041340,1739511049070,-500.0,0.00014438,2]
[353041341,1739511049080,-643.07,0.00014438,2]
[353041342,1739511049090,-500.0,0.00014438,2]
[353041343,1739511049100,-393.24800914,0.00014438,2]
[353041344,1739511049111,-500.0,0.00014438,2]
[353041345,1739511049120,-500.0,0.00014438,2]
[353041346,1739511049131,-500.0,0.00014438,2]
[353041347,1739511049141,-806.19,0.00014438,2]
[353041348,1739511049151,-500.0,0.00014438,2]
[353041349,1739511049161,-1059.0,0.00014482,2]
[353041350,1739511049172,-500.0,0.0001452,2]
[353041351,1739511049181,-500.0,0.0001452,2]
[353041352,1739511049192,-500.0,0.0001452,2]
[353041353,1739511049203,-500.0,0.0001452,2]
[353041354,1739511049214,-151.0,0.0001452,2]
[353041355,1739511049224,-500.0,0.0001452,2]
[353041356,1739511049234,-151.0,0.0001452,2]
[353041357,1739511049245,-643.07,0.0001452,2]
[353041358,1739511049255,-500.0,0.0001452,2]
[353041359,1739511049265,-500.0,0.0001452,2]
[353041360,1739511049275,-500.0,0.0001452,2]
[353041361,1739511049286,-500.0,0.0001452,2]
[353041362,1739511049296,-806.19,0.0001452,2]
[353041363,1739511049307,-500.0,0.0001452,2]
[353041364,1739511049317,-202.0,0.0001458,2]
[353041365,1739511049327,-500.0,0.00014602,2]
[353041366,1739511049338,-500.0,0.00014602,2]
[353041367,1739511049349,-500.0,0.00014602,2]
[353041368,1739511049359,-500.0,0.00014602,2]
[353041369,1739511049371,-500.0,0.00014602,2]
[353041370,1739511049382,-643.07,0.00014602,2]
[353041371,1739511049393,-500.0,0.00014602,2]
[353041372,1739511049404,-500.0,0.00014602,2]
[353041373,1739511049414,-637.61,0.00014602,2]
[353041374,1739511049425,-500.0,0.00014602,2]
[353041375,1739511049435,-806.19,0.00014602,2]
[353041376,1739511049445,-500.0,0.00014602,2]
[353041377,1739511049455,-500.0,0.00014684,2]
[353041378,1739511049466,-500.0,0.00014684,2]
[353041379,1739511049476,-500.0,0.00014684,2]
[353041380,1739511049487,-500.0,0.00014684,2]
[353041381,1739511049497,-500.0,0.00014684,2]
[353041382,1739511049508,-643.07,0.00014684,2]
[353041383,1739511049518,-500.0,0.00014684,2]
[353041384,1739511049527,-542.59,0.00014684,2]
[353041385,1739511049537,-500.0,0.00014684,2]
[353041386,1739511049547,-806.19,0.00014684,2]
[353041387,1739511049557,-500.0,0.00014684,2]
[353041388,1739511049567,-500.0,0.00014767,2]
[353041389,1739511049576,-500.0,0.00014767,2]
[353041390,1739511049586,-500.0,0.00014767,2]
[353041391,1739511049596,-500.0,0.00014767,2]
[353041392,1739511049606,-350.71,0.00014767,2]
[353041393,1739511049616,-643.07,0.00014767,2]
[353041394,1739511049626,-500.0,0.00014767,2]
[353041395,1739511049636,-500.0,0.00014767,2]
[353041396,1739511049646,-806.19,0.00014767,2]
[353041397,1739511049656,-581.63,0.00014767,2]
[353041398,1739511049666,-2072.60136584,0.000148,3]
[353041399,1739511049675,-500.0,0.00014849,2]
[353041400,1739511049684,-500.0,0.00014849,2]
[353041401,1739511049694,-551.51109158,0.00014849,2]
[353041402,1739511049705,-500.0,0.00014849,2]
[353041403,1739511049715,-643.07,0.00014849,2]
[353041404,1739511049724,-500.0,0.00014849,2]
[353041405,1739511049734,-500.0,0.00014849,2]
[353041406,1739511049743,-806.19,0.00014849,2]
[353041407,1739511049753,-262.50085161,0.00014873,2]
[353041408,1739511049762,-500.0,0.00014873,2]
[353041409,1739511049771,-151.728682,0.000149,2]
[353041410,1739511049780,-400.0,0.000149,5]
[353041411,1739511049790,-151.0,0.000149,2]
[353041412,1739511049800,-257.900243,0.000149,2]
[353041413,1739511049809,-1302.85,0.00014923,2]
[353041414,1739511049818,-216.97517832,0.00014931,2]
[353041415,1739511049827,-500.0,0.00014931,2]
[353041416,1739511049837,-500.0,0.00014931,2]
[353041417,1739511049846,-643.07,0.00014931,2]
[353041418,1739511049856,-500.0,0.00014931,2]
[353041419,1739511049865,-500.0,0.00014931,2]
[353041420,1739511049874,-806.19,0.00014931,2]
[353041421,1739511049884,-600.0,0.00015,2]
[353041422,1739511049893,-3408.0,0.00015,2]
[353041423,1739511049903,-1168.43675,0.00015,2]
[353041424,1739511049912,-289.14,0.00015013,2]
[353041425,1739511049921,-500.0,0.00015013,2]
[353041426,1739511049931,-643.07,0.00015013,2]
[353041427,1739511049940,-500.0,0.00015013,2]
[353041428,1739511049950,-564.30420794,0.00015013,2]
[353041429,1739511049959,-806.19,0.00015013,2]
[353041430,1739511049969,-150.0,0.0001503,2]
[353041431,1739511049978,-1008.0,0.0001503,2]
[353041432,1739511049987,-202.0,0.0001506,2]
[353041433,1739511049997,-999.0,0.00015068,2]
[353041434,1739511050006,-500.0,0.00015095,2]
[353041435,1739511050016,-643.07,0.00015095,2]
[353041436,1739511050025,-500.0,0.00015095,2]
[353041437,1739511050034,-806.19,0.00015095,2]
[353041438,1739511050043,-16254.39592953,0.000151,3]
[353041439,1739511050059,-707.16598164,0.000151,3]
[353041440,1739511050070,-1270.15857547,0.000151,3]
[353041441,1739511050082,-1236.18809784,0.000151,3]
[353041442,1739511050093,-1693.3984075,0.000151,3]
[353041443,1739511050112,-500.0,0.00013698,2]
[353041444,1739511050121,-470.67362132,0.000151,3]
[353041445,1739511050133,-134835.35804142,0.000151,3]
[353041446,1739511050143,-341.15,0.00015178,2]
[353041447,1739511050152,-643.07,0.00015178,2]
[353041448,1739511050161,-494.99,0.00015178,2]
[353041449,1739511050171,-806.19,0.00015178,2]
[353041450,1739511050179,-1059.0,0.00015207,2]
[353041451,1739511050186,-4953.0,0.00015233,2]
[353041452,1739511050194,-155.91970963,0.00015233,2]
[353041453,1739511050202,-643.07,0.0001526,2]
[353041454,1739511050212,-806.19,0.0001526,2]
[353041455,1739511050220,-643.07,0.00015342,2]
[353041456,1739511050228,-806.19,0.00015342,2]
[353041457,1739511050237,-918.505,0.000154,2]
[353041458,1739511050246,-783.0,0.000154,2]
[353041459,1739511050255,-1265.0,0.000154,2]
[353041460,1739511050264,-2956.0,0.000154,2]
[353041461,1739511050273,-908.0,0.000154,2]
[353041462,1739511050283,-4027.0,0.000154,2]
[353041463,1739511050292,-539.0,0.000154,2]
[353041464,1739511050301,-3257.21,0.000154,2]
[353041465,1739511050310,-1273.0,0.000154,2]
[353041466,1739511050320,-2025.0,0.000154,2]
[353041467,1739511050330,-1000.0,0.00015421,2]
[353041468,1739511050339,-643.07,0.00015424,2]
[353041469,1739511050348,-806.19,0.00015424,2]
[353041470,1739511050357,-150.0,0.00015469,2]
[353041471,1739511050367,-201.25935331,0.00015469,2]
[353041472,1739511050375,-643.07,0.00015506,2]
[353041473,1739511050385,-806.19,0.00015506,2]
[353041474,1739511050394,-202.0,0.0001553,2]
[353041475,1739511050403,-643.25319039,0.00015589,2]
[353041476,1739511050412,-806.21,0.00015589,2]
[353041477,1739511050422,-500.0,0.00015828,2]
[353041478,1739511050431,-700.0,0.00015828,2]
[353041479,1739511050440,-900.0,0.00015828,2]
[353041480,1739511050449,-1059.0,0.00015967,2]
[353041481,1739511050459,-202.0,0.0001601,2]
[353041482,1739511050468,-155.91970963,0.00016122,2]
[353041483,1739511050478,-172.01069817,0.00016438,2]
[353041484,1739511050488,-200.0,0.00016438,2]
[353041485,1739511050497,-200.0,0.00016438,2]
[353041486,1739511050506,-200.0,0.00016438,2]
[353041487,1739511050516,-200.0,0.00016438,2]
[353041488,1739511050525,-200.0,0.00016438,2]
[353041489,1739511050535,-200.0,0.00016438,2]
[353041490,1739511050544,-340.93325559,0.00016438,2]
[353041491,1739511050553,-500.0,0.00016438,2]
[353041492,1739511050563,-500.0,0.00016438,2]
[353041493,1739511050572,-500.0,0.00016438,2]
[353041494,1739511050582,-500.0,0.00016438,2]
[353041495,1739511050591,-500.0,0.00016438,2]
[353041496,1739511050601,-500.0,0.00016438,2]
[353041497,1739511050611,-500.0,0.00016438,2]
[353041498,1739511050621,-500.0,0.00016438,2]
[353041499,1739511050633,-500.0,0.00016438,2]
[353041500,1739511050643,-500.0,0.00016438,2]
[353041501,1739511050654,-500.0,0.00016438,2]
[353041502,1739511050665,-402.2,0.00016438,2]
[353041503,1739511050675,-202.0,0.0001648,2]
[353041504,1739511050684,-418.08,0.00016658,30]
[353041505,1739511050694,-1061.87625243,0.00016765,2]
[353041506,1739511050703,-150.0,0.00016805,2]
[353041507,1739511050712,-805.44918842,0.00016805,2]
[353041508,1739511050722,-319.05,0.00016813,2]
[353041509,1739511050732,-231.59,0.00016813,2]
[353041510,1739511050742,-202.0,0.0001696,2]
[353041511,1739511050754,-257623.27058829,0.00017,20]
[353041512,1739511050764,-650.0,0.00017,2]
[353041513,1739511050773,-151.0,0.00017,2]
[353041514,1739511050783,-151.0,0.00017,2]
[353041515,1739511050794,-151.0,0.00017,2]
[353041516,1739511050805,-151.0,0.00017,2]
[353041517,1739511050814,-155.91970963,0.00017011,2]
[353041518,1739511050824,-1302.85,0.00017158,2]
[353041519,1739511050834,-700.0,0.00017198,2]
[353041520,1739511050844,-900.0,0.00017198,2]
[353041521,1739511050854,-999.0,0.0001726,4]
[353041522,1739511050863,-430.30418923,0.00017386,2]
[353041523,1739511050872,-202.0,0.0001743,2]
[353041524,1739511050882,-150.0,0.00017727,2]
[353041525,1739511050891,-150.0,0.0001773,2]
[353041526,1739511050901,-150.0,0.00017733,2]
[353041527,1739511050910,-150.0,0.00017737,2]
[353041528,1739511050919,-150.0,0.00017748,2]
[353041529,1739511050929,-200.23423456,0.00017749,2]
[353041530,1739511050968,-150.0,0.0001775,2]
[353041531,1739511050978,-150.0,0.00017751,2]
[353041532,1739511050988,-150.0,0.00017752,2]
[353041533,1739511050998,-150.0,0.00017756,2]
[353041534,1739511051007,-150.0,0.00017757,2]
[353041535,1739511051016,-150.0,0.00017767,2]
[353041536,1739511051026,-150.0,0.00017775,2]
[353041537,1739511051036,-150.0,0.00017777,2]
[353041538,1739511051045,-150.0,0.00017777,2]
[353041539,1739511051054,-150.0,0.00017779,2]
[353041540,1739511051064,-150.0,0.00017779,2]
[353041541,1739511051074,-150.0,0.00017788,2]
[353041542,1739511051083,-150.0,0.00017789,2]
[353041543,1739511051093,-150.0,0.00017791,2]
[353041544,1739511051103,-400.0,0.000178,6]
[353041545,1739511051113,-150.0,0.00017802,2]
[353041546,1739511051122,-150.0,0.00017805,2]
[353041547,1739511051132,-600.0,0.00017808,2]
[353041548,1739511051142,-150.0,0.0001781,2]
[353041549,1739511051151,-150.0,0.00017811,2]
[353041550,1739511051160,-1010.23119104,0.00017815,2]
[353041551,1739511051170,-150.0,0.00017815,2]
[353041552,1739511051179,-150.0,0.00017817,2]
[353041553,1739511051189,-150.0,0.00017818,2]
[353041554,1739511051198,-1016.56390118,0.00017823,2]
[353041555,1739511051208,-150.0,0.00017828,2]
[353041556,1739511051217,-150.0,0.00017829,2]
[353041557,1739511051227,-150.0,0.00017837,2]
[353041558,1739511051236,-150.0,0.0001784,2]
[353041559,1739511051245,-151.67520734,0.00017841,2]
[353041560,1739511051255,-150.0,0.00017844,2]
[353041561,1739511051264,-150.0,0.00017857,2]
[353041562,1739511051273,-150.0,0.00017869,2]
[353041563,1739511051283,-150.0,0.00017872,2]
[353041564,1739511051293,-150.0,0.00017878,2]
[353041565,1739511051303,-150.0,0.00017882,2]
[353041566,1739511051313,-150.0,0.00017883,2]
[353041567,1739511051322,-150.0,0.0001789,2]
[353041568,1739511051332,-150.0,0.00017898,2]
[353041569,1739511051341,-150.0,0.00017898,2]
[353041570,1739511051351,-155.91970963,0.000179,2]
[353041571,1739511051362,-400.0,0.000179,6]
[353041572,1739511051372,-202.0,0.0001791,2]
[353041573,1739511051382,-150.0,0.00017914,2]
[353041574,1739511051391,-150.0,0.00017919,2]
[353041575,1739511051401,-150.0,0.00017925,2]
[353041576,1739511051410,-150.0,0.00017925,2]
[353041577,1739511051420,-150.0,0.0001793,2]
[353041578,1739511051429,-162.73432915,0.00017936,2]
[353041579,1739511051438,-150.0,0.00017947,2]
[353041580,1739511051447,-150.0,0.00017965,2]
[353041581,1739511051458,-150.0,0.00017976,2]
[353041582,1739511051468,-150.0,0.00017979,2]
[353041583,1739511051478,-150.0,0.00017986,2]
[353041584,1739511051487,-150.0,0.00017986,2]
[353041585,1739511051496,-11983.8647983,0.00017989,2]
[353041586,1739511051506,-204.080059,0.0001799,2]
[353041587,1739511051515,-258.1722627,0.00018,2]
[353041588,1739511051525,-1143680.37393139,0.00018,3]
[353041589,1739511051534,-30245.0,0.00018,3]
[353041590,1739511051543,-2372221.94470294,0.00018,30]
[353041591,1739511051639,-381.28266465,0.00018,30]
[353041592,1739511051650,-41978.91880527,0.00018,30]
[353041593,1739511051666,-463.72725999,0.00018,30]
[353041594,1739511051677,-306.94443232,0.00018,30]
[353041595,1739511051819,-641.369,0.0001203,2]
[353041596,1739511051830,-995.96567539,0.00012456,2]
[353041597,1739511051840,-500.0,0.0001378,2]
[353041598,1739511051850,-500.0,0.00013863,2]
[353041599,1739511051859,-471.77614465,0.00013945,2]
[353041600,1739511051874,-28.22385535,0.00013945,2]
[353041601,1739511051884,-500.0,0.00014027,2]
[353041602,1739511051894,-9.77364516,0.00014109,2]
[353041603,1739511051905,-490.22635484,0.00014109,2]
[353041604,1739511051915,-500.0,0.00014191,2]
[353041605,1739511051924,-500.0,0.00014273,2]
[353041606,1739511051933,-178.61862441,0.0001503,2]
[353041607,1739511051945,-459.38137559,0.0001503,2]
[353041608,1739511051954,-150.0,0.00016438,2]
[353041609,1739511051965,-775.0,0.00017752,2]
[353041610,1739511051974,-54496.5941594,0.00018,30]
[353041611,1739511051985,-370.60876754,0.00018,30]
[353041612,1739511051996,-25893.7019215,0.00018,30]
[353041613,1739511052008,-33188.16676352,0.00018,30]
[353041614,1739511052019,-2306.71483423,0.00018,30]
[353041615,1739511052031,-477.54241384,0.00018,30]
[353041616,1739511052043,-25627.12453534,0.00018,30]
[353041617,1739511052066,-500.0,0.00014356,2]
[353041618,1739511052076,-10059.49459492,0.00018,30]
[353041619,1739511052094,-4089.86236095,0.00012087,2]
[353041620,1739511052106,-758.57759602,0.00012087,2]
[353041621,1739511052115,-11535.17120398,0.00018,30]
[353041622,1739511052256,-500.0,0.00014438,2]
[353041623,1739511052266,-41.77106581,0.0001452,2]
[353041624,1739511052278,-458.22893419,0.0001452,2]
[353041625,1739511052288,-221.17635057,0.00014602,2]
[353041626,1739511052301,-324.43,0.00014602,2]
[353041627,1739511052313,-76.41364943,0.00014602,2]
[353041628,1739511052323,-18837.30399111,0.00018,30]
[353041629,1739511052335,-322.8916,0.00018,30]
[353041630,1739511052346,-1220.31603624,0.00018,30]
[353041631,1739511052395,-320.07612321,0.00013233,2]
[353041632,1739511052407,-300.0,0.00013233,2]
[353041633,1739511052420,-375.88955218,0.00013233,2]
[353041634,1739511052429,-302.2518415,0.00018,30]
[353041635,1739511052441,-1438.43008209,0.00018,30]
[353041636,1739511052452,-441.39269502,0.00018,30]
[353041637,1739511402413,-22451.657,8.973e-05,2]
[353041638,1739511402436,-4048.343,8.973e-05,2]
[353041639,1739511427366,-951.657,8.973e-05,2]
[353041640,1739511427388,-150.0,9.998e-05,2]
[353041641,1739511427409,-500.0,9.999e-05,2]
[353041642,1739511427430,-200.0,0.00010068,2]
[353041643,1739511427452,-500.0,0.00010136,2]
[353041644,1739511427474,-200.0,0.00010273,2]
[353041645,1739511427495,-500.0,0.00010273,2]
[353041646,1739511427516,-500.0,0.0001041,2]
[353041647,1739511427539,-500.0,0.00010547,2]
[353041648,1739511427558,-500.0,0.00010684,2]
[353041649,1739511427577,-500.0,0.00010821,2]
[353041650,1739511427596,-500.0,0.00010958,2]
[353041651,1739511427615,-200.0,0.00010999,2]
[353041652,1739511427634,-500.0,0.00011095,2]
[353041653,1739511427654,-500.0,0.00011232,2]
[353041654,1739511427673,-500.0,0.00011369,2]
[353041655,1739511427692,-500.0,0.00011506,2]
[353041656,1739511427712,-500.0,0.00011643,2]
[353041657,1739511427735,-500.0,0.0001178,2]
[353041658,1739511427756,-500.0,0.00011917,2]
[353041659,1739511427778,-500.0,0.00012054,2]
[353041660,1739511427803,-300.0,0.0001219,2]
[353041661,1739511427826,-500.0,0.00012191,2]
[353041662,1739511427846,-151.103,0.00012239,2]
[353041663,1739511427867,-575.145,0.00012239,2]
[353041664,1739511427888,-500.0,0.00012328,2]
[353041665,1739511427910,-3322.8117078,0.00012354,2]
[353041666,1739511428076,-500.0,0.00012465,2]
[353041667,1739511428102,-500.0,0.00012602,2]
[353041668,1739511428126,-1000.0,0.00012829,2]
[353041669,1739511428157,-2956.0,0.0001283,2]
[353041670,1739511428182,-539.0,0.0001283,2]
[353041671,1739511428205,-3354.2832922,0.0001283,2]
[353041672,1739511823429,886.08,0.00013,30]
[353041675,1739511964281,-336.75,0.00010137,2]
[353041676,1739511964305,-200.0,0.00011151,2]
[353041677,1739511964330,-200.0,0.00011166,2]
[353041678,1739511964352,-39035.08923804,0.00012195,2]
[353041679,1739511964375,-200.0,0.00012319,2]
[353041680,1739511964398,-655.56187266,0.0001273,2]
[353041681,1739511964422,-150.0,0.00012795,2]
[353041682,1739511964444,-672.7167078,0.0001283,2]
[353041683,1739511964467,-3257.21,0.0001283,2]
[353041684,1739511964489,-1273.0,0.0001283,2]
[353041685,1739511964512,-2025.0,0.0001283,2]
[353041686,1739511964534,-150.0,0.0001283,2]
[353041687,1739511964556,-569.0,0.0001283,2]
[353041688,1739511964578,-1111.722,0.0001283,2]
[353041689,1739511964605,-918.505,0.0001283,2]
[353041690,1739511964627,-550.0,0.00013,2]
[353041691,1739511964647,-500.80736758,0.00013698,2]
[353041692,1739511964668,-500.0,0.00013698,2]
[353041693,1739511964689,-500.0,0.00013698,2]
[353041694,1739511964710,-594.86024032,0.0001378,2]
[353041695,1739511964733,-500.0,0.0001378,2]
[353041696,1739511964756,-316.72,0.00013863,2]
[353041697,1739511964777,-500.0,0.00013966,2]
[353041698,1739511964799,-175.65,0.00014,2]
[353041699,1739511964821,-655.56187264,0.00014309,2]
[353041700,1739511964845,-737.49914839,0.00014514,2]
[353041701,1739511964868,-1138.61,0.00014605,2]
[353041702,1739511964892,-93973.15239998,0.00014695,2]
[353041703,1739511964916,-1628.23,0.00014898,2]
[353041704,1739511964938,-19999.99,0.00014898,2]
[353041705,1739511964959,-250.0,0.0001492,2]
[353041706,1739511964980,-600.0,0.00015,2]
[353041707,1739511965002,-1000.0,0.00015203,2]
[353041708,1739511965023,-7841.31912849,0.00015427,2]
[353041709,1739511965045,-150.0,0.00015469,2]
[353041710,1739511965067,-163.17687324,0.00015469,2]
[353041711,1739511965088,-500.0,0.00015508,2]
[353041712,1739511965110,-200.0,0.00015787,2]
[353041713,1739511965132,-800.0,0.00015828,2]
[353041714,1739511965154,-500.0,0.00015828,2]
[353041715,1739511965177,-655.56187264,0.00015888,2]
[353041716,1739511965199,-5016.15533631,0.00015894,2]
[353041717,1739511965221,-306.6,0.00016084,2]
[353041718,1739511965243,-334.63,0.00016105,2]
[353041719,1739511965269,-158.18,0.00016365,2]
[353041720,1739511965292,-158.18,0.0001637,2]
[353041721,1739511965314,-158.18,0.00016374,2]
[353041722,1739511965336,-158.18,0.00016378,2]
[353041723,1739511965359,-158.18,0.00016383,2]
[353041724,1739511965382,-158.18,0.00016387,2]
[353041725,1739511965405,-158.18,0.00016391,2]
[353041726,1739511965426,-158.18,0.00016396,2]
[353041727,1739511965449,-158.18,0.000164,2]
[353041728,1739511965471,-158.18,0.00016404,2]
[353041729,1739511965494,-158.18,0.00016408,2]
[353041730,1739511965517,-158.18,0.00016413,2]
[353041731,1739511965540,-158.18,0.00016417,2]
[353041732,1739511965566,-158.18,0.00016421,2]
[353041733,1739511965591,-158.18,0.00016426,2]
[353041734,1739511965613,-158.18,0.0001643,2]
[353041735,1739511965636,-158.18,0.00016434,2]
[353041736,1739511965658,-200.0,0.00016438,2]
[353041737,1739511965679,-200.0,0.00016438,2]
[353041738,1739511965700,-200.0,0.00016438,2]
[353041739,1739511965723,-200.0,0.00016438,2]
[353041740,1739511965745,-200.0,0.00016438,2]
[353041741,1739511965768,-200.0,0.00016438,2]
[353041742,1739511965790,-340.93325559,0.00016438,2]
[353041743,1739511965812,-500.0,0.00016438,2]
[353041744,1739511965835,-500.0,0.00016438,2]
[353041745,1739511965856,-500.0,0.00016438,2]
[353041746,1739511965880,-500.0,0.00016438,2]
[353041747,1739511965904,-500.0,0.00016438,2]
[353041748,1739511965927,-500.0,0.00016438,2]
[353041749,1739511965948,-500.0,0.00016438,2]
[353041750,1739511965970,-500.0,0.00016438,2]
[353041751,1739511965992,-500.0,0.00016438,2]
[353041752,1739511966014,-500.0,0.00016438,2]
[353041753,1739511966036,-500.0,0.00016438,2]
[353041754,1739511966057,-402.2,0.00016438,2]
[353041755,1739511966080,-158.18,0.00016439,2]
[353041756,1739511966103,-158.18,0.00016443,2]
[353041757,1739511966126,-158.18,0.00016447,2]
[353041758,1739511966153,-199.61,0.00016523,2]
[353041759,1739511966179,-150.0,0.00016805,2]
[353041760,1739511966200,-843.5316685,0.00016805,2]
[353041761,1739511966223,-336.75,0.00016813,2]
[353041762,1739511966246,-1138.61,0.00016869,2]
[353041763,1739511966271,-600.0,0.00016924,2]
[353041764,1739511966293,-1287.368,0.00016962,2]
[353041765,1739511966314,-650.0,0.00017,2]
[353041766,1739511966336,-1000.0,0.00017103,2]
[353041767,1739511966358,-800.0,0.00017198,2]
[353041768,1739511966379,-655.56187264,0.00017468,2]
[353041769,1739511966400,-1002.0,0.000175,3]
[353041770,1739511966422,-162.3322482,0.0001764,2]
[353041771,1739511966443,-189.90162194,0.000177,2]
[353041772,1739511966466,-689.12281488,0.000177,2]
[353041773,1739511966488,-689.12281486,0.00017722,2]
[353041774,1739511966512,-150.0,0.00017723,2]
[353041775,1739511966533,-402.15781786,0.00017724,2]
[353041776,1739511966553,-150.0,0.00017731,2]
[353041777,1739511966574,-689.12281486,0.00017744,2]
[353041778,1739511966598,-150.0,0.0001775,2]
[353041779,1739511966620,-150.0,0.0001775,2]
[353041780,1739511966644,-150.0,0.0001775,2]
[353041781,1739511966664,-150.0,0.00017763,2]
[353041782,1739511966687,-150.0,0.00017766,2]
[353041783,1739511966708,-689.12281486,0.00017767,2]
[353041784,1739511966732,-162.73432915,0.00017774,2]
[353041785,1739511966755,-150.0,0.00017783,2]
[353041786,1739511966775,-150.0,0.00017785,2]
[353041787,1739511966798,-150.0,0.00017786,2]
[353041788,1739511966819,-689.12281486,0.00017789,2]
[353041789,1739511966838,-200.23423456,0.00017792,2]
[353041790,1739511966862,-150.0,0.00017794,2]
[353041791,1739511966884,-150.0,0.00017794,2]
[353041792,1739511966908,-150.0,0.00017796,2]
[353041793,1739511966930,-150.0,0.00017796,2]
[353041794,1739511966951,-500.0,0.00017799,2]
[353041795,1739511966982,-494.99,0.00017799,2]
[353041796,1739511967012,-500.0,0.00017799,2]